bitfinex-derivatives/quotes_BTCF0:USTF0_20241231
["timestamp","ask_amount","ask_price","bid_price","bid_amount"]
[1735665962540,0.11768082,94762.0,94761.0,0.061861]
[1735665962831,0.11868082,94762.0,94761.0,0.069861]
[1735665964727,0.31532298,94769.0,94761.0,1.569861]
[1735665964937,0.31532298,94769.0,94761.0,0.017]
[1735665964938,0.33263144,94769.0,94761.0,0.017]
[1735665965131,0.1271,94768.0,94761.0,0.017]
[1735665965334,0.052861,94762.0,94761.0,0.017]
[1735665966527,0.053861,94762.0,94761.0,0.017]
[1735665968737,0.054861,94762.0,94761.0,0.018]
[1735665969631,0.054861,94762.0,94718.0,0.18894138]
[1735665969632,0.052874,94739.0,94738.0,0.3608]
[1735665969833,0.052874,94738.0,94732.0,0.052877]
[1735665970030,0.094174,94738.0,94732.0,0.052877]
[1735665971037,0.052876,94735.0,94732.0,0.052877]
[1735665971341,0.052877,94734.0,94732.0,0.052877]
[1735665972944,0.060877,94734.0,94732.0,0.052877]
[1735665973326,0.065877,94734.0,94732.0,0.052877]
[1735665975042,0.052877,94733.0,94732.0,0.052877]
[1735665975349,0.013,94734.0,94726.0,0.3608]
[1735665975739,0.05288,94727.0,94726.0,0.3608]
[1735665976940,0.05488,94727.0,94726.0,0.3608]
[1735665977344,0.05888,94727.0,94726.0,0.3608]
[1735665978741,0.05488,94727.0,94726.0,0.3608]
[1735665978949,0.05888,94727.0,94726.0,0.3608]
[1735665979148,0.05988,94727.0,94726.0,0.3608]
[1735665979355,0.05588,94727.0,94726.0,0.3608]
[1735665979541,0.06188,94727.0,94726.0,0.3618]
[1735665979843,0.05888,94727.0,94726.0,0.3618]
[1735665980149,0.07879478,94727.0,94726.0,0.3618]
[1735665986756,0.07879478,94727.0,94726.0,0.3418]
[1735665989458,0.07879478,94727.0,94726.0,0.3618]
[1735665990661,0.052885,94719.0,94713.0,0.00158357]
[1735665990959,0.052888,94714.0,94713.0,0.00158357]
[1735665992857,0.052891,94708.0,94707.0,0.3608]
[1735665994049,0.052891,94708.0,94688.0,0.0006]
[1735665994050,0.3,94708.0,94688.0,0.0006]
[1735665994352,0.07034264,94698.0,94680.0,0.3608]
[1735665994654,0.052904,94685.0,94680.0,0.3608]
[1735665995045,0.07034264,94690.0,94680.0,0.3608]
[1735665995251,0.12324364,94690.0,94685.0,0.052904]
[1735665995560,0.052901,94690.0,94686.0,0.0845]
[1735665995860,0.052902,94689.0,94686.0,0.0845]
[1735665996061,0.052903,94687.0,94686.0,0.0845]
[1735665997963,0.001,94690.0,94686.0,0.0855]
[1735665998163,0.12323864,94700.0,94690.0,0.052901]
[1735665998474,0.052897,94697.0,94694.0,0.052898]
[1735665999063,0.09197584,94700.0,94691.0,1.5429]
[1735665999254,0.09197584,94700.0,94691.0,0.0423]
[1735665999255,0.0529,94692.0,94691.0,0.0423]
[1735666000864,0.004,94697.0,94692.0,0.0529]
[1735666001055,0.004,94697.0,94691.0,0.0423]
[1735666001562,0.001,94692.0,94691.0,0.095201]
[1735666002162,0.003,94692.0,94691.0,0.095201]
[1735666002368,0.002,94692.0,94691.0,0.095201]
[1735666002568,0.003,94697.0,94691.0,0.095201]
[1735666003267,0.002,94692.0,94691.0,0.095201]
[1735666003467,0.002,94692.0,94691.0,0.0423]
[1735666003672,0.0559,94692.0,94691.0,0.0423]
[1735666004754,0.0539,94692.0,94691.0,0.0423]
[1735666005561,0.0559,94692.0,94691.0,0.0423]
[1735666007682,0.003,94692.0,94691.0,0.0423]
[1735666007867,0.003,94692.0,94691.0,0.095201]
[1735666009868,0.052892,94706.0,94691.0,0.095201]
[1735666010075,0.052892,94706.0,94698.0,0.3608]
[1735666010373,0.01926826,94719.0,94698.0,0.3608]
[1735666010574,0.052893,94704.0,94703.0,0.052894]
[1735666011764,0.05289,94711.0,94707.0,0.052891]
[1735666012274,0.02281071,94717.0,94708.0,0.0425]
[1735666012576,0.05289,94709.0,94708.0,0.0425]
[1735666013672,0.05289,94709.0,94708.0,0.0435]
[1735666013874,0.05289,94709.0,94708.0,0.001]
[1735666014272,0.3608,94712.0,94698.0,0.3608]
[1735666014577,0.052896,94699.0,94698.0,0.3608]
[1735666014782,0.0529,94692.0,94689.0,0.052901]
[1735666016169,0.0539,94692.0,94690.0,0.052901]
[1735666016872,0.0549,94692.0,94690.0,0.052901]
[1735666017681,0.052901,94691.0,94689.0,0.052901]
[1735666018979,0.053901,94691.0,94689.0,0.052901]
[1735666020677,0.053901,94691.0,94674.0,0.3608]
[1735666020888,0.052904,94685.0,94679.0,0.05449104]
[1735666021277,0.052904,94685.0,94679.0,0.00158404]
[1735666022281,0.052904,94685.0,94684.0,0.3628]
[1735666023877,0.07381189,94692.0,94690.0,0.052901]
[1735666024177,0.3608,94695.0,94684.0,0.3628]
[1735666024380,0.052904,94685.0,94684.0,0.3628]
[1735666025180,0.052904,94685.0,94684.0,0.3608]
[1735666025505,0.052904,94685.0,94684.0,0.3628]
[1735666025782,0.07369249,94685.0,94684.0,0.3628]
[1735666027383,0.07369249,94685.0,94684.0,0.3618]
[1735666028984,0.07369249,94685.0,94684.0,0.414704]
[1735666032280,0.07369249,94685.0,94684.0,0.3628]
[1735666032579,0.07369249,94685.0,94684.0,0.002]
[1735666035388,0.07369249,94685.0,94640.0,0.25288519]
[1735666035389,0.32078849,94685.0,94640.0,0.25288519]
[1735666035595,0.052924,94649.0,94646.0,0.23064138]
[1735666035890,0.052924,94649.0,94647.0,1.5]
[1735666036092,0.07034264,94656.0,94647.0,1.5]
[1735666036285,0.052924,94649.0,94646.0,0.23064138]
[1735666036482,0.052924,94649.0,94647.0,0.052925]
[1735666036985,0.052914,94667.0,94663.0,0.052916]
[1735666037188,0.07403314,94667.0,94664.0,0.0423]
[1735666037490,0.02111914,94667.0,94664.0,0.0423]
[1735666037687,0.07034264,94674.0,94664.0,0.0423]
[1735666037688,0.052915,94666.0,94664.0,0.0423]
[1735666037992,0.052915,94666.0,94664.0,0.095215]
[1735666038187,0.38143868,94668.0,94665.0,0.052915]
[1735666038387,0.43435268,94668.0,94665.0,0.052915]
[1735666040394,0.052914,94667.0,94665.0,0.053915]
[1735666040780,0.052914,94666.0,94665.0,0.001]
[1735666041597,0.052918,94660.0,94658.0,0.0433]
[1735666042389,0.052918,94659.0,94658.0,0.0433]
[1735666043286,0.052918,94659.0,94658.0,0.0443]
[1735666043998,0.052918,94659.0,94658.0,0.001]
[1735666044187,0.052918,94659.0,94658.0,0.002]
[1735666044387,0.052916,94664.0,94658.0,0.002]
[1735666044588,0.052917,94662.0,94661.0,0.052917]
[1735666046094,0.052914,94667.0,94658.0,0.001]
[1735666046293,0.052917,94661.0,94658.0,0.054919]
[1735666046989,0.052917,94661.0,94658.0,0.053919]
[1735666047196,0.052918,94660.0,94658.0,0.053919]
[1735666047493,0.052918,94659.0,94658.0,0.001]
[1735666047813,0.45178132,94668.0,94656.0,0.3608]
[1735666047814,0.05292,94657.0,94656.0,0.3608]
[1735666049220,0.05392,94657.0,94656.0,0.3618]
[1735666050619,0.05392,94657.0,94644.0,0.0448]
[1735666050811,0.052926,94647.0,94644.0,0.0448]
[1735666051009,0.052926,94647.0,94644.0,0.097727]
[1735666051223,0.052926,94646.0,94644.0,0.097727]
[1735666051821,0.052923,94650.0,94646.0,0.052926]
[1735666052516,0.052924,94649.0,94646.0,0.052926]
[1735666053033,0.052925,94648.0,94646.0,0.052926]
[1735666054403,0.052925,94647.0,94646.0,0.002]
[1735666054902,0.052935,94630.0,94628.0,0.052936]
[1735666055492,0.052935,94630.0,94622.0,0.0443]
[1735666055493,0.07034264,94638.0,94622.0,0.0443]
[1735666055697,0.052935,94629.0,94624.0,0.052938]
[1735666055897,0.052933,94634.0,94622.0,0.0443]
[1735666056095,0.052933,94633.0,94631.0,0.052934]
[1735666056305,0.47460001,94663.0,94620.0,0.11364264]
[1735666056306,0.11132298,94667.0,94666.0,0.052914]
[1735666056517,0.02129401,94675.0,94672.0,0.052911]
[1735666056706,0.052902,94688.0,94674.0,0.41371]
[1735666057007,0.052902,94688.0,94687.0,0.3608]
[1735666057407,0.6608,94688.0,94674.0,0.3608]
[1735666057597,0.07034264,94684.0,94674.0,0.3608]
[1735666057797,0.052908,94678.0,94674.0,0.3608]
[1735666058001,0.052909,94677.0,94674.0,0.3608]
[1735666060407,0.054909,94677.0,94674.0,0.3608]
[1735666060606,0.002,94677.0,94674.0,0.3608]
[1735666061003,0.052906,94682.0,94674.0,0.3608]
[1735666061199,0.003,94677.0,94674.0,0.3608]
[1735666062201,0.002,94677.0,94674.0,0.3608]
[1735666063110,0.002,94682.0,94679.0,0.052907]
[1735666063410,0.002,94682.0,94674.0,0.3608]
[1735666063612,0.002,94682.0,94681.0,0.052906]
[1735666063915,0.02922267,94683.0,94681.0,0.052906]
[1735666064208,0.02142344,94683.0,94682.0,0.3608]
[1735666064412,0.07034264,94691.0,94682.0,0.3608]
[1735666064614,0.052902,94688.0,94682.0,0.413705]
[1735666065208,0.07034264,94691.0,94682.0,0.413705]
[1735666065514,0.052903,94686.0,94682.0,0.413705]
[1735666066207,0.07034264,94691.0,94682.0,0.3608]
[1735666066208,0.052904,94685.0,94682.0,0.3608]
[1735666066408,0.005,94683.0,94682.0,0.3608]
[1735666066712,0.005,94683.0,94669.0,0.052913]
[1735666066933,0.052907,94679.0,94671.0,0.052912]
[1735666067338,0.008,94686.0,94671.0,0.052912]
[1735666067539,0.008,94686.0,94677.0,0.052908]
[1735666067540,0.052905,94683.0,94677.0,0.052908]
[1735666067946,0.052906,94682.0,94677.0,0.052908]
[1735666068183,0.005,94683.0,94681.0,0.3608]
[1735666068345,0.02162193,94683.0,94681.0,0.3608]
[1735666068555,0.003,94686.0,94682.0,0.0437]
[1735666068845,0.003,94686.0,94683.0,0.052905]
[1735666069440,0.052902,94689.0,94684.0,0.052904]
[1735666069851,0.07034264,94700.0,94686.0,0.3608]
[1735666070149,0.07034264,94710.0,94699.0,0.3608]
[1735666070352,0.12323264,94710.0,94709.0,0.3608]
[1735666070550,0.05289,94710.0,94709.0,0.3608]
[1735666072050,0.052888,94715.0,94709.0,0.3608]
[1735666072242,0.052888,94715.0,94714.0,0.3608]
[1735666073441,0.053888,94715.0,94714.0,0.3668]
[1735666073634,0.001,94715.0,94714.0,0.419688]
[1735666075031,0.002,94715.0,94714.0,0.420688]
[1735666076420,0.009,94715.0,94714.0,0.415688]
[1735666076615,0.017,94715.0,94714.0,0.414688]
[1735666078821,0.00158437,94725.0,94718.0,0.052885]
[1735666079122,0.05446637,94725.0,94724.0,0.3608]
[1735666079321,0.07390492,94725.0,94724.0,0.3608]
[1735666080311,0.08290492,94725.0,94724.0,0.3618]
[1735666080515,0.09190492,94725.0,94724.0,0.3618]
[1735666080923,0.03902292,94725.0,94724.0,0.3618]
[1735666081123,0.47392,94742.0,94724.0,0.3618]
[1735666081318,0.47392,94742.0,94740.0,0.7216]
[1735666081319,0.052873,94741.0,94740.0,0.7216]
[1735666083129,0.052873,94741.0,94740.0,0.7306]
[1735666083924,0.053873,94741.0,94740.0,0.7396]
[1735666084630,0.061873,94741.0,94740.0,0.7316]
[1735666085123,0.061873,94741.0,94726.0,0.3608]
[1735666085124,0.361873,94741.0,94726.0,0.3608]
[1735666085323,0.05288,94727.0,94726.0,0.3608]
[1735666086932,0.05588,94727.0,94726.0,0.3608]
[1735666088633,0.78300586,94727.0,94682.0,0.0008]
[1735666088830,0.78300586,94727.0,94677.0,0.0428]
[1735666088831,0.3608,94687.0,94677.0,0.0428]
[1735666090133,0.3618,94687.0,94677.0,0.0508]
[1735666090732,0.3628,94687.0,94677.0,0.0438]
[1735666092432,0.38867894,94687.0,94677.0,0.0438]
[1735666094424,0.38867894,94687.0,94677.0,0.001]
[1735666096125,0.3608,94678.0,94677.0,0.001]
[1735666097030,0.3608,94678.0,94659.0,0.3608]
[1735666097229,0.10727408,94669.0,94659.0,0.3608]
[1735666097733,0.10727408,94669.0,94660.0,0.044]
[1735666098326,0.10827408,94669.0,94660.0,0.044]
[1735666099933,0.10727408,94669.0,94660.0,0.046]
[1735666100136,0.10827408,94669.0,94660.0,0.055]
[1735666101732,0.001,94669.0,94660.0,0.055]
[1735666102922,0.02717318,94669.0,94660.0,0.055]
[1735666107843,0.3608,94662.0,94660.0,0.055]
[1735666108843,0.3608,94662.0,94660.0,0.053]
[1735666109040,0.3608,94662.0,94660.0,0.055]
[1735666110646,0.3608,94662.0,94660.0,0.011]
[1735666110940,0.8348,94662.0,94660.0,0.011]
[1735666111141,0.8348,94662.0,94639.0,0.08728513]
[1735666111341,0.14100902,94649.0,94640.0,0.0422]
[1735666111648,0.07050451,94649.0,94640.0,0.0422]
[1735666112238,0.07050451,94650.0,94640.0,0.0422]
[1735666112639,0.07050451,94650.0,94640.0,0.0472]
[1735666112842,0.3608,94654.0,94640.0,0.0562]
[1735666112843,0.001,94649.0,94640.0,0.0562]
[1735666113444,0.07150451,94650.0,94640.0,0.0562]
[1735666114643,0.09859001,94650.0,94640.0,0.0562]
[1735666114951,0.09859001,94650.0,94640.0,0.0512]
[1735666115148,0.09859001,94650.0,94640.0,0.0552]
[1735666115446,0.001,94649.0,94640.0,0.0502]
[1735666115953,0.09759001,94650.0,94640.0,0.0462]
[1735666118252,0.16809452,94650.0,94640.0,0.0462]
[1735666118443,0.3608,94646.0,94640.0,0.0462]
[1735666119655,0.3608,94646.0,94640.0,0.0422]
[1735666119854,0.3608,94646.0,94640.0,0.0462]
[1735666120854,0.3608,94646.0,94640.0,0.004]
[1735666128350,0.3608,94648.0,94640.0,0.004]
[1735666129755,0.3608,94648.0,94639.0,0.00158513]
[1735666129957,0.3608,94648.0,94640.0,0.004]
[1735666131362,0.3608,94648.0,94639.0,0.00158513]
[1735666131553,0.3608,94648.0,94639.0,0.00558513]
[1735666132154,0.3608,94640.0,94639.0,0.00158513]
[1735666134377,0.3608,94640.0,94639.0,0.00558513]
[1735666135283,0.6608,94640.0,94624.0,0.18395746]
[1735666135472,0.6608,94640.0,94600.0,0.1]
[1735666135473,0.3608,94625.0,94612.0,0.30023841]
[1735666135689,0.3608,94614.0,94612.0,0.29943841]
[1735666135885,0.3608,94614.0,94604.0,0.37980893]
[1735666136286,0.3608,94605.0,94604.0,0.37980893]
[1735666137287,0.3608,94605.0,94577.0,0.00088]
[1735666137498,0.3608,94605.0,94585.0,0.4014]
[1735666137499,0.14100902,94595.0,94585.0,0.4014]
[1735666138293,0.3608,94589.0,94576.0,0.042]
[1735666138491,0.61516902,94588.0,94576.0,0.042]
[1735666138682,0.3608,94581.0,94576.0,0.042]
[1735666140164,0.38689741,94581.0,94569.0,0.0406]
[1735666140471,0.21151353,94580.0,94568.0,0.00158632]
[1735666141169,0.14100902,94580.0,94568.0,0.00158632]
[1735666141670,0.38789741,94581.0,94568.0,0.00158632]
[1735666141861,0.07050451,94578.0,94568.0,0.00158632]
[1735666142253,0.07050451,94578.0,94576.0,0.002]
[1735666142463,0.001,94580.0,94576.0,0.002]
[1735666142765,0.001,94580.0,94579.0,0.3608]
[1735666142959,0.00158649,94600.0,94579.0,0.3608]
[1735666143160,0.00158649,94600.0,94589.0,0.3608]
[1735666143464,0.072091,94600.0,94590.0,0.0442]
[1735666143667,0.00158649,94600.0,94597.0,0.3608]
[1735666143865,0.02790374,94600.0,94597.0,0.3608]
[1735666144166,0.00158649,94600.0,94598.0,1.5]
[1735666144360,0.00158649,94600.0,94597.0,0.3608]
[1735666144956,0.00358649,94600.0,94597.0,0.3608]
[1735666145664,0.00558649,94600.0,94597.0,0.3608]
[1735666146263,0.00558649,94600.0,94598.0,0.0437]
[1735666146466,0.00458649,94600.0,94590.0,0.0442]
[1735666146654,0.11216244,94600.0,94590.0,0.0442]
[1735666146852,0.11216244,94600.0,94597.0,0.001]
[1735666146853,0.11016244,94600.0,94597.0,0.001]
[1735666147058,0.00258649,94600.0,94597.0,0.001]
[1735666147264,0.00258649,94600.0,94599.0,6.522e-05]
[1735666147658,0.00358649,94600.0,94599.0,6.522e-05]
[1735666148063,0.00258649,94600.0,94599.0,6.522e-05]
[1735666148367,0.00060001,94611.0,94599.0,0.05301722]
[1735666148564,0.0328985,94611.0,94608.0,0.3608]
[1735666148761,0.10757595,94630.0,94608.0,0.3608]
[1735666148960,0.10757595,94620.0,94608.0,0.3608]
[1735666150370,0.007,94620.0,94608.0,0.3608]
[1735666151569,0.012,94620.0,94609.0,0.0423]
[1735666152566,0.04452701,94620.0,94609.0,0.0423]
[1735666152859,0.012,94620.0,94609.0,0.0423]
[1735666154370,0.11957595,94620.0,94609.0,0.0423]
[1735666154971,0.012,94620.0,94609.0,0.0423]
[1735666158875,0.3608,94614.0,94609.0,0.0423]
[1735666160970,0.3678,94614.0,94609.0,0.0423]
[1735666161174,0.3728,94614.0,94609.0,0.0423]
[1735666161882,0.3728,94614.0,94599.0,6.522e-05]
[1735666162084,0.3608,94602.0,94591.0,0.02386385]
[1735666162382,0.10757595,94600.0,94591.0,0.02386385]
[1735666163566,0.3608,94602.0,94591.0,0.02386385]
[1735666163973,0.3608,94606.0,94591.0,0.02386385]
[1735666164182,0.3608,94606.0,94591.0,0.02586385]
[1735666165079,0.3608,94606.0,94591.0,0.02386385]
[1735666165262,0.13550117,94610.0,94596.0,0.3608]
[1735666165760,0.02792522,94610.0,94604.0,0.3608]
[1735666165969,0.001,94606.0,94604.0,0.3608]
[1735666166163,0.3608,94614.0,94604.0,0.413749]
[1735666166566,0.07056733,94620.0,94605.0,0.052948]
[1735666166765,0.003,94610.0,94605.0,0.052948]
[1735666167266,0.002,94610.0,94605.0,0.052948]
[1735666167469,0.005,94614.0,94605.0,0.052948]
[1735666167869,0.09943941,94620.0,94605.0,0.052948]
[1735666168077,0.005,94610.0,94605.0,0.052948]
[1735666168284,0.005,94610.0,94604.0,0.3608]
[1735666169571,0.009,94610.0,94604.0,0.3608]
[1735666169771,0.004,94610.0,94604.0,0.3608]
[1735666170377,0.009,94610.0,94604.0,0.413749]
[1735666171377,0.03819818,94610.0,94605.0,0.052948]
[1735666171573,0.009,94610.0,94605.0,0.052948]
[1735666172575,0.009,94610.0,94606.0,0.052948]
[1735666172882,0.003,94610.0,94606.0,0.052948]
[1735666173089,0.008,94610.0,94606.0,0.052948]
[1735666173274,0.008,94610.0,94604.0,0.3608]
[1735666173677,0.009,94610.0,94604.0,0.3608]
[1735666174083,0.01,94610.0,94604.0,0.3608]
[1735666174683,0.009,94610.0,94604.0,0.3608]
[1735666174886,0.009,94610.0,94604.0,0.413749]
[1735666175085,0.009,94610.0,94605.0,0.052949]
[1735666175273,0.008,94610.0,94608.0,0.052947]
[1735666175474,0.008,94610.0,94609.0,0.0428]
[1735666176187,0.003,94610.0,94609.0,0.0428]
[1735666176483,0.009,94610.0,94609.0,0.0428]
[1735666176688,0.004,94610.0,94609.0,0.0428]
[1735666176874,0.011,94610.0,94609.0,0.0428]
[1735666177077,0.03987211,94610.0,94609.0,0.0428]
[1735666179081,0.40067211,94610.0,94596.0,0.3608]
[1735666179280,0.40067211,94610.0,94597.0,0.0418]
[1735666179281,0.11043944,94610.0,94597.0,0.0418]
[1735666179990,0.47123944,94610.0,94597.0,0.0418]
[1735666180288,0.10343944,94610.0,94597.0,0.0418]
[1735666180481,0.10443944,94610.0,94597.0,0.0418]
[1735666181379,0.03387211,94610.0,94597.0,0.0418]
[1735666181587,0.03187211,94610.0,94597.0,0.0418]
[1735666182191,0.03187211,94610.0,94606.0,0.3608]
[1735666183281,0.02987211,94610.0,94606.0,0.3608]
[1735666183478,0.03887211,94610.0,94606.0,0.3608]
[1735666193698,0.03887211,94610.0,94597.0,0.0418]
[1735666194199,0.10943944,94610.0,94604.0,0.3608]
[1735666194898,0.10743944,94610.0,94604.0,0.3608]
[1735666195689,0.10843944,94610.0,94604.0,0.3608]
[1735666196209,0.09751583,94619.0,94606.0,0.052945]
[1735666196392,0.07056733,94620.0,94618.0,0.3608]
[1735666196592,0.57647477,94640.0,94619.0,0.3608]
[1735666196593,0.14113466,94628.0,94619.0,0.3608]
[1735666196797,0.14113466,94629.0,94619.0,0.28313218]
[1735666197185,0.44113466,94629.0,94619.0,0.28313218]
[1735666197387,0.37056733,94629.0,94619.0,0.28313218]
[1735666197591,0.009,94620.0,94619.0,0.28313218]
[1735666197991,0.23448815,94640.0,94619.0,0.28313218]
[1735666198188,0.07956733,94629.0,94628.0,0.3608]
[1735666198397,0.009,94629.0,94628.0,0.3608]
[1735666198703,0.003,94629.0,94628.0,0.3608]
[1735666199402,0.003,94629.0,94628.0,0.3618]
[1735666199608,0.03142527,94629.0,94628.0,0.3618]
[1735666199796,0.003,94629.0,94628.0,0.3618]
[1735666200396,0.012,94629.0,94628.0,0.34081476]
[1735666200601,0.012,94629.0,94628.0,0.21176765]
[1735666203707,0.312,94629.0,94597.0,0.0418]
[1735666203906,0.07056733,94607.0,94603.0,0.3608]
[1735666204102,0.18452291,94627.0,94603.0,0.3608]
[1735666204297,0.07056733,94613.0,94611.0,0.3608]
[1735666204502,0.07056733,94620.0,94611.0,0.3608]
[1735666204705,0.07056733,94620.0,94611.0,0.40806175]
[1735666205211,0.07056733,94621.0,94619.0,0.3608]
[1735666205412,0.18452291,94627.0,94619.0,0.3608]
[1735666206503,0.21298262,94627.0,94619.0,0.3608]
[1735666207111,0.004,94620.0,94619.0,0.3608]
[1735666207704,0.004,94620.0,94619.0,0.3618]
[1735666207904,0.22698262,94627.0,94619.0,0.3628]
[1735666208199,0.21798262,94627.0,94619.0,0.3618]
[1735666208406,0.009,94620.0,94619.0,0.3628]
[1735666208908,0.014,94620.0,94619.0,0.3628]
[1735666209716,0.05940814,94627.0,94619.0,0.3618]
[1735666210012,0.06840814,94627.0,94619.0,0.3628]
[1735666210315,0.06840814,94627.0,94619.0,0.3618]
[1735666210612,0.009,94620.0,94619.0,0.3628]
[1735666211114,0.07240814,94627.0,94619.0,0.3618]
[1735666211807,0.004,94620.0,94619.0,0.3618]
[1735666212004,0.004,94620.0,94619.0,0.40906175]
[1735666212905,0.013,94620.0,94619.0,0.40906175]
[1735666213113,0.009,94620.0,94619.0,0.40906175]
[1735666216217,0.47428,94652.0,94619.0,0.40906175]
[1735666216511,0.11392392,94646.0,94639.0,0.3608]
[1735666217112,0.11392392,94646.0,94640.0,0.1003]
[1735666217315,0.09748866,94651.0,94640.0,0.1003]
[1735666217607,0.14113466,94650.0,94640.0,0.1003]
[1735666218016,0.0299966,94648.0,94640.0,0.1003]
[1735666218917,0.0299966,94648.0,94640.0,0.1093]
[1735666219505,0.0299966,94648.0,94639.0,0.3470295]
[1735666219811,0.3608,94640.0,94601.0,0.3608]
[1735666220001,0.07056733,94611.0,94601.0,0.3608]
[1735666220204,0.07056733,94611.0,94601.0,0.40806175]
[1735666221204,0.3608,94622.0,94610.0,0.3608]
[1735666221513,0.14113466,94620.0,94610.0,0.3608]
[1735666221815,0.14113466,94620.0,94610.0,0.40806175]
[1735666223110,0.14113466,94620.0,94611.0,0.1493]
[1735666223608,0.14113466,94620.0,94611.0,0.19656175]
[1735666223821,0.14313466,94620.0,94611.0,0.19656175]
[1735666224209,0.07256733,94620.0,94611.0,0.19656175]
[1735666224406,0.10812945,94620.0,94618.0,0.3608]
[1735666224601,0.3608,94647.0,94618.0,0.3608]
[1735666224807,0.07056733,94640.0,94628.0,0.3608]
[1735666225023,0.07056733,94640.0,94629.0,0.0492]
[1735666225210,0.09750282,94639.0,94629.0,0.0492]
[1735666225519,0.09750282,94639.0,94630.0,0.0488]
[1735666226017,0.09750282,94639.0,94630.0,0.09606175]
[1735666226215,0.11631166,94639.0,94630.0,0.09606175]
[1735666226516,0.01880884,94639.0,94630.0,0.0488]
[1735666227021,0.11831166,94639.0,94630.0,0.0488]
[1735666227518,0.3608,94631.0,94630.0,0.0488]
[1735666227720,0.3608,94631.0,94629.0,0.0492]
[1735666228620,0.12131166,94639.0,94629.0,0.0492]
[1735666228811,0.10250282,94639.0,94629.0,0.0492]
[1735666229213,0.005,94639.0,94629.0,0.0492]
[1735666229416,0.003,94631.0,94629.0,0.0492]
[1735666229920,0.006,94639.0,94629.0,0.0492]
[1735666230518,0.003,94639.0,94629.0,0.0492]
[1735666230816,0.003,94631.0,94629.0,0.09646175]
[1735666231017,0.006,94631.0,94629.0,0.09646175]
[1735666231519,0.01271303,94630.0,94629.0,0.09646175]
[1735666232616,0.01571303,94630.0,94629.0,0.09646175]
[1735666233016,0.01871303,94630.0,94629.0,0.09646175]
[1735666234919,0.01871303,94630.0,94629.0,0.04726175]
[1735666235523,0.02375289,94630.0,94629.0,0.04726175]
[1735666235723,0.05944582,94630.0,94629.0,0.04726175]
[1735666242321,0.09749612,94642.0,94629.0,0.04726175]
[1735666242527,0.09749612,94642.0,94641.0,0.3608]
[1735666242920,0.09749612,94642.0,94641.0,0.40806175]
[1735666243312,0.11646767,94651.0,94641.0,0.40806175]
[1735666243524,0.16806345,94651.0,94641.0,0.40806175]
[1735666243728,0.003,94642.0,94641.0,0.3608]
[1735666243923,0.005,94642.0,94628.0,0.0991]
[1735666244121,0.005,94642.0,94628.0,0.14636175]
[1735666244122,0.07056733,94638.0,94628.0,0.14636175]
[1735666244630,0.14113466,94640.0,94628.0,0.14636175]
[1735666244827,0.21170199,94640.0,94628.0,0.14636175]
[1735666245127,0.21170199,94640.0,94628.0,0.0991]
[1735666246919,0.21170199,94640.0,94628.0,0.14636175]
[1735666246920,0.002,94638.0,94628.0,0.14636175]
[1735666247115,0.3608,94631.0,94593.0,0.3608]
[1735666247315,0.07056733,94607.0,94605.0,0.0971]
[1735666247519,0.43136733,94615.0,94605.0,0.0971]
[1735666247834,0.43136733,94615.0,94605.0,0.14436175]
[1735666248520,0.43136733,94615.0,94605.0,0.14736175]
[1735666248721,0.09749612,94614.0,94605.0,0.14736175]
[1735666249627,0.09749612,94614.0,94605.0,0.05026175]
[1735666249832,0.06902476,94614.0,94605.0,0.05026175]
[1735666250226,0.00145202,94610.0,94605.0,0.05026175]
[1735666250427,0.00145202,94610.0,94605.0,0.05826175]
[1735666250920,0.00145202,94610.0,94605.0,0.05026175]
[1735666251121,0.00145202,94608.0,94605.0,0.04926175]
[1735666252126,0.14739612,94614.0,94605.0,0.04926175]
[1735666252127,0.00145202,94607.0,94605.0,0.04926175]
[1735666253120,0.16656725,94614.0,94605.0,0.04926175]
[1735666253319,0.00145202,94606.0,94605.0,0.04926175]
[1735666255434,0.36225202,94606.0,94580.0,0.3608]
[1735666255627,0.3608,94589.0,94580.0,0.3608]
[1735666255824,0.3608,94589.0,94580.0,0.40806175]
[1735666256327,0.00145202,94585.0,94580.0,0.40806175]
[1735666257225,0.00145202,94583.0,94580.0,0.41206175]
[1735666257431,0.00145202,94583.0,94580.0,0.42106175]
[1735666258425,0.00145202,94582.0,94580.0,0.42106175]
[1735666259321,0.00145202,94581.0,94580.0,0.42106175]
[1735666259723,0.00145202,94581.0,94580.0,0.06026175]
[1735666260327,0.03660333,94581.0,94580.0,0.05626175]
[1735666260532,0.00145202,94581.0,94580.0,0.06026175]
[1735666261127,0.00145202,94581.0,94580.0,0.05626175]
[1735666261325,0.00290436,94581.0,94580.0,0.06026175]
[1735666269440,0.03571285,94589.0,94580.0,0.06026175]
[1735666269636,0.07056733,94600.0,94590.0,0.052951]
[1735666269834,0.07056733,94600.0,94597.0,0.3608]
[1735666270036,0.03528061,94606.0,94597.0,0.3608]
[1735666270246,0.14113466,94607.0,94597.0,0.40806175]
[1735666270442,0.47484001,94610.0,94605.0,0.3608]
[1735666270443,0.00056001,94610.0,94605.0,0.3608]
[1735666270643,0.07056733,94615.0,94605.0,0.3608]
[1735666270839,0.07056733,94615.0,94608.0,0.052941]
[1735666271139,0.4744,94630.0,94609.0,0.0505]
[1735666271140,0.3608,94627.0,94609.0,0.0505]
[1735666271346,0.3608,94627.0,94620.0,0.3608]
[1735666271844,0.3608,94627.0,94620.0,0.40806175]
[1735666272640,0.3608,94627.0,94621.0,0.0502]
[1735666273138,0.3608,94627.0,94621.0,0.09746175]
[1735666274339,0.3608,94627.0,94609.0,0.0505]
[1735666274541,0.3608,94627.0,94610.0,0.11776733]
[1735666274943,0.3608,94627.0,94618.0,0.3608]
[1735666275335,0.3608,94627.0,94618.0,0.40806175]